[Event "GER-chT States Women 2022"]
[Site "Braunfels"]
[Date "2022.06.19"]
[Round "5.20"]
[White "Falke, Ornella"]
[Black "Braun, Kristin"]
[Result "1-0"]
[ECO "B52"]
[WhiteElo "1844"]
[BlackElo "1905"]
[Annotator "NA RC"]
[PlyCount "121"]
[EventDate "2022.06.15"]
[EventType "swiss"]
[EventCountry "GER"]
[SourceTitle "playchess.com"]
[Source "ChessBase"]
[SourceQuality "1"]
[TimeControl "40/5400+30:1800+30"]

1. e4 {[%emt 0:00:05]} c5 {[%emt 0:00:03]} 2. Nf3 {[%emt 0:00:08]} d6 {[%emt 0:00:02]} 3. Bb5+ {[%emt 0:00:19]} Bd7 {[%emt 0:00:05]} 4. Bxd7+ {[%emt 0:00:07]} Qxd7 {[%emt 0:00:03]} 5. c4 {[%emt 0:00:09]} Nf6 {[%emt 0:00:07]} 6. Nc3 {[%emt 0:00:16]} Nc6 {[%emt 0:00:07]} 7. d4 {[%emt 0:00:36]} cxd4 {[%emt 0:00:04]} 8. Nxd4 {[%emt 0:00:08]} g6 {[%emt 0:00:08]} 9. f3 {[%emt 0:04:27]} Bg7 {[%emt 0:00:05]} 10. Be3 {[%emt 0:00:31]} O-O {[%emt 0:00:44]} 11. O-O {[%emt 0:00:52]} Rac8 {[%emt 0:02:08]} 12. Qe2 {[%emt 0:02:39]} Nxe4 {[%emt 0:03:42]} 13. fxe4 {[%emt 0:09:18]} Nxd4 {[%emt 0:05:16]} 14. Qd3 {[%emt 0:00:10]} Nc6 {[%emt 0:00:25]} 15. b3 {[%emt 0:02:07]} b6 {[%emt 0:04:35]} 16. Rad1 {[%emt 0:00:43]} Ne5 {[%emt 0:16:57]} 17. Qd2 {[%emt 0:01:13]} Rfe8 {[%emt 0:14:07]} 18. Nd5 {[%emt 0:01:12]} Qg4 {[%emt 0:04:11]} 19. Bg5 {[%emt 0:08:34]} f6 {[%emt 0:05:42]} 20. Bf4 {[%emt 0:00:43]} Qe6 {[%emt 0:13:10]} 21. Rfe1 {[%emt 0:11:59]} h5 {[%emt 0:03:51]} 22. Bg3 {[%emt 0:04:52]} Kh7 {[%emt 0:00:16]} 23. Nf4 {[%emt 0:01:04]} Qg4 24. Qe2 {[%emt 0:15:37]} Bh6 {[%emt 0:04:43]} 25. Nd5 {[%emt 0:04:34]} Qxe2 {[%emt 0:01:05]} 26. Rxe2 {[%emt 0:00:04]} Nd7 {[%emt 0:02:04]} 27. Be1 {[%emt 0:06:17]} Kg7 {[%emt 0:00:40]} 28. g3 {[%emt 0:02:32]} Kf7 {[%emt 0:01:17]} 29. Kh1 {[%emt 0:00:30]} Ne5 {[%emt 0:04:59]} 30. Bc3 {[%emt 0:01:00]} Nd7 {[%emt 0:00:22]} 31. Bd4 {[%emt 0:01:32]} Nc5 {[%emt 0:00:26]} 32. Rf1 {[%emt 0:04:47]} Nd7 {[%emt 0:02:35]} 33. Rf3 {[%emt 0:04:05]} Bg5 {[%emt 0:00:21]} 34. h4 {[%emt 0:02:08]} Bh6 {[%emt 0:00:09]} 35. Ref2 {[%emt 0:01:41]} Bg7 {[%emt 0:02:01]} 36. Kh2 {[%emt 0:01:12]} Rg8 {[%emt 0:02:43]} 37. a4 {[%emt 0:01:31]} Bh8 {[%emt 0:03:36]} 38. a5 {[%emt 0:03:44]} bxa5 {[%emt 0:03:23]} 39. Ra2 {[%emt 0:00:17]} Nc5 {[%emt 0:01:12]} 40. Rxa5 {[%emt 0:01:48]} g5 {[%emt 0:01:23]} 41. hxg5 {[%emt 0:30:42]} Nxe4 {[%emt 0:02:34]} 42. Be3 {[%emt 0:00:00]} Nxg5 43. Bxg5 {[%emt 0:00:00]} Rxg5 {[%emt 0:11:55]} 44. Rxa7 {[%emt 0:00:00]} Re5 {[%emt 0:00:32]} 45. Nb6 {[%emt 0:00:00]} Rg8 {[%emt 0:01:50]} 46. b4 {[%emt 0:00:00]} Re1 {[%emt 0:00:26]} 47. Kh3 {[%emt 0:00:00]} h4 {[%emt 0:01:07]} 48. Kg2 {[%emt 0:00:00]} hxg3 {[%emt 0:03:49]} 49. Rxg3 {[%emt 0:00:00]} Rxg3+ 50. Kxg3 {[%emt 0:00:00]} f5 {[%emt 0:01:23]} 51. Nd5 {[%emt 0:00:00]} Be5+ {[%emt 0:04:16]} 52. Kf3 {[%emt 0:00:00]} Bd4 {[%emt 0:00:40]} 53. Rb7 {[%emt 0:00:00]} Re4 {[%emt 0:02:30]} 54. b5 {[%emt 0:00:00]} Bf6 {[%emt 0:00:03]} 55. Rc7 {[%emt 0:00:00]} Re1 {[%emt 0:02:08]} 56. b6 {[%emt 0:01:26]} Rb1 {[%emt 0:01:14]} 57. Ra7 {[%emt 0:01:58]} Kg6 {[%emt 0:00:30]} 58. Ra5 {[%emt 0:01:06]} Rb3+ {[%emt 0:00:27]} 59. Ke2 {[%emt 0:00:13]} e6 {[%emt 0:00:50]} 60. Nxf6 {[%emt 0:00:44]} Kxf6 {[%emt 0:00:01]} 61. Rb5 1-0

[Event "GER-chT States Women 2022"]
[Site "Braunfels"]
[Date "2022.06.19"]
[Round "5.21"]
[White "Ankerst, Milka"]
[Black "Mundt, Alexandra"]
[Result "1-0"]
[ECO "B77"]
[WhiteElo "1931"]
[BlackElo "1782"]
[Annotator "TA"]
[PlyCount "67"]
[EventDate "2022.06.15"]
[EventType "swiss"]
[EventCountry "GER"]
[SourceTitle "playchess.com"]
[Source "ChessBase"]
[SourceQuality "1"]
[TimeControl "40/5400+30:1800+30"]

{[%evp 17,66,49,69,34,97,88,89,78,102,75,119,107,148,167,157,162,154,160,165,150,147,138,158,16,18,14,18,18,38,20,136,87,976,960,900,862,833,856,1381,1367,1737,1462,29971,5799,29979,29980,29980,29981,29980,29981,29999]} 1. e4 {[%emt 0:00:50]} g6 {[%emt 0:00:06]} 2. d4 {[%emt 0:00:22]} Bg7 {[%emt 0:00:07]} 3. Nc3 {[%emt 0:00:44]} c5 {[%emt 0:00:17]} 4. Nge2 {[%emt 0:05:18]} cxd4 {[%emt 0:02:22]} 5. Nxd4 {[%emt 0:00:14]} d6 {[%emt 0:00:10]} 6. Be3 {[%emt 0:02:02]} Nf6 {[%emt 0:00:34]} 7. f3 {[%emt 0:04:15]} Nc6 {[%emt 0:00:52]} 8. Qd2 {[%emt 0:02:01]} O-O {[%emt 0:07:36]} 9. Bc4 {[%emt 0:01:37]} Ne5 {[%emt 0:06:57]} 10. Bb3 {[%emt 0:01:10] B77: Sicilian Dragon: Yugoslav Attack, 9 Bc4 sidelines.} a5 {[%emt 0:03:11]} (10... Bd7 $14) 11. a4 $16 {[%emt 0:05:17]} Bd7 {[%emt 0:03:31]} 12. O-O {[%emt 0:05:49] White is better.} Rc8 {[%emt 0:06:21]} 13. Kh1 {[%emt 0:07:26]} h5 {[%emt 0:10:08]} 14. Qe2 {[%emt 0:15:49]} h4 {[%emt 0:06:24] [#]} 15. Rad1 $146 {[%emt 0:08:00] White is more active.} ({Predecessor:} 15. Rg1 Kh7 16. Qf2 Rh8 17. Nd5 Kg8 18. Bg5 e6 19. Nxf6+ Bxf6 20. Be3 g5 21. h3 {½-½ (40) Horvath,K (2237)-Papp Zoltan,C (2294) Hungary 2009}) 15... h3 {[%emt 0:06:22]} 16. gxh3 {[%emt 0:00:21]} Bxh3 {[%emt 0:00:07]} 17. Rg1 {[%emt 0:00:21]} Qd7 {[%emt 0:01:00]} 18. Qf2 {[%emt 0:01:10]} Nc4 {[%emt 0:02:58]} 19. Bc1 Rc5 {[%emt 0:02:17] [#]} 20. Nd5 {[%emt 0:13:28]} ({Better is} 20. Nde2 $1 $16 {Qxc5 is the strong threat.} Be6 21. Qxc5 dxc5 22. Rxd7 Nxd7 23. Nf4) 20... Nxd5 $11 {[%emt 0:04:22]} 21. exd5 {[%emt 0:00:39]} Rfc8 {[%emt 0:00:11]} 22. Qe2 $1 {[%emt 0:01:33]} Bf5 {[%emt 0:17:32]} 23. c3 {[%emt 0:02:05]} e5 {[%emt 0:11:21]} (23... Bxd4 $11 {keeps the balance.} 24. Rxd4 b5) 24. dxe6 {[%emt 0:00:52]} (24. Nxf5 $142 Qxf5 25. Rg4) 24... fxe6 $2 {[%emt 0:01:28][%mdl 8192] Black cannot hold the game after this.} (24... Bxe6 $16 25. Nxe6 Re5) 25. Nxf5 $18 {[%emt 0:02:54]} Rxf5 {[%emt 0:03:19]} 26. Bxc4 {[%emt 0:01:18]} Re5 {[%emt 0:00:52]} 27. Qd3 {[%emt 0:03:57]} d5 {[%emt 0:01:56]} 28. Bb5 {[%emt 0:00:25]} Qf7 {[%emt 0:00:53]} 29. Rxg6 {[%emt 0:01:54] [#] White wants to mate with Bh6.} Rc7 {[%emt 0:00:51]} 30. Rdg1 {[%emt 0:00:22]} (30. Bh6 $142 Qf8 31. Rdg1 Rh5 32. Bxg7 Rxg7 33. Rxg7+ Qxg7 34. Rxg7+ Kxg7 35. Qd4+ Kf7 36. Bd3) 30... Qf8 {[%emt 0:00:51]} 31. Bh6 {[%emt 0:00:45] White mates.} Rh5 {[%emt 0:00:21]} 32. Rxg7+ {[%emt 0:00:23]} Rxg7 {[%emt 0:00:08]} 33. Rxg7+ {[%emt 0:00:10]} Kh8 {[%emt 0:00:24]} 34. Qh7# {[%emt 0:00:18] Weighted Error Value: White=0.21 (precise) /Black=0.96} 1-0

[Event "GER-chT States Women 2022"]
[Site "Braunfels"]
[Date "2022.06.19"]
[Round "5.22"]
[White "Braeutigam, Katerina"]
[Black "Spiel, Marianne"]
[Result "1-0"]
[ECO "C06"]
[WhiteElo "1860"]
[BlackElo "1910"]
[Annotator "TA"]
[PlyCount "65"]
[EventDate "2022.06.15"]
[EventType "swiss"]
[EventCountry "GER"]
[SourceTitle "playchess.com"]
[Source "ChessBase"]
[SourceQuality "1"]
[TimeControl "40/5400+30:1800+30"]

{[%evp 22,65,24,30,60,23,15,44,38,31,35,26,54,40,180,180,175,178,178,193,187,65,104,115,304,116,104,27,261,268,780,85,767,510,5514,5485,29991,29992,29995,29996,29996,29994,29996,29997,29997,567]} 1. e4 {[%emt 0:00:01]} e6 {[%emt 0:00:09]} 2. d4 {[%emt 0:00:05]} d5 {[%emt 0:00:05]} 3. Nd2 {[%emt 0:00:09]} Nf6 {[%emt 0:00:15]} 4. e5 {[%emt 0:00:06]} Nfd7 {[%emt 0:00:06]} 5. Bd3 {[%emt 0:00:06]} c5 {[%emt 0:00:07]} 6. c3 {[%emt 0:00:06]} Nc6 {[%emt 0:00:11]} 7. Ne2 {[%emt 0:00:06]} cxd4 {[%emt 0:00:12]} 8. cxd4 {[%emt 0:00:06]} f6 {[%emt 0:00:11]} 9. exf6 {[%emt 0:00:06]} Nxf6 {[%emt 0:00:07]} 10. Nf3 {[%emt 0:00:07]} Bd6 {[%emt 0:00:35]} 11. O-O {[%emt 0:00:07]} O-O {[%emt 0:00:34]} 12. Bf4 {[%emt 0:00:09]} Ng4 {[%emt 0:26:56] C06: French Tarrasch: 3...Nf6 4 e5 Nfd7 5 Bd3 main lines.} 13. Bxd6 {[%emt 0:13:54]} Qxd6 {[%emt 0:00:15]} 14. Ng3 {[%emt 0:02:45][%cal Od3h7]} e5 {[%emt 0:03:13] White is slightly better.} 15. dxe5 {[%emt 0:07:57]} Ncxe5 {[%emt 0:00:29]} 16. Nxe5 {[%emt 0:06:31]} Qxe5 {[%emt 0:03:02]} 17. Qb3 {[%emt 0:11:43] [#]} Rf7 $146 {[%emt 0:12:39]} ({Black should try} 17... b6 $14) ({Predecessor:} 17... Kh8 18. Qb4 Be6 19. Rae1 Qf6 20. Bb1 Rae8 21. Qd2 a6 22. h3 Nh6 23. Qb4 Bd7 24. Rxe8 Bxe8 {½-½ (40) Waffenschmidt,L (1885)-Rauch,S (1901) Braunschweig 2019}) 18. Rae1 $18 {[%emt 0:04:47]} Qd6 {[%emt 0:02:13]} 19. Re8+ {[%emt 0:17:03]} Rf8 {[%emt 0:00:36]} 20. Rxf8+ {[%emt 0:14:40]} Kxf8 {[%emt 0:01:20]} 21. Rd1 {[%emt 0:15:43]} (21. Bxh7 $18 {Threatens to win with Rd1.} b6 22. h3 (22. Qf3+ Nf6 $16)) 21... Qc5 {[%emt 0:04:13]} 22. Bxh7 {[%emt 0:03:13] [#] Hoping for Nh5. Active counter play!} Qxf2+ {[%emt 0:07:21]} 23. Kh1 {[%emt 0:00:04] Dancing on a razor blade.} Ne3 {[%emt 0:00:36][%csl Ge3][%cal Rf2g2]} 24. Rg1 {[%emt 0:00:54]} (24. Qb4+ $16 Kf7 25. Rg1) 24... Ke7 $2 {[%emt 0:17:05]} (24... a5 $1 $11 {and Black is okay.} 25. Qb6 Bh3 26. Qc5+ (26. Qd6+ Kf7 $11) 26... Kf7) 25. Qb4+ {[%emt 0:00:45]} ({Don't do} 25. Qc3 $6 Bh3 26. Qxg7+ Kd8 27. Qh8+ (27. Qg5+ Kd7 $18) 27... Ke7 28. Qg7+ Kd8 29. Qh8+ (29. Qg5+ Kd7 $18) 29... Ke7 30. Qe5+ Kd7 31. Qg7+ Kd8 $18) 25... Ke6 $2 {[%emt 0:01:07] [#]} (25... Kf7 26. Nh5 (26. Qd6 Bh3 $11) 26... g6) 26. Qe1 $2 {[%emt 0:00:53]} (26. Qc5 $18) 26... Qf4 $2 {[%emt 0:06:05][%mdl 8192]} (26... Qxe1 $16 27. Rxe1 d4) 27. Rf1 {[%emt 0:00:46]} Qh6 {[%emt 0:01:00]} (27... Qe5 $142 28. Rf8 Kd6 29. Qb4+ Kc6) 28. Nf5 {[%emt 0:00:26]} Qxh7 29. Qxe3+ {[%emt 0:00:04] White mates.} Kd7 {[%emt 0:03:26]} 30. Qe7+ {[%emt 0:00:02]} Kc6 {[%emt 0:00:11]} 31. Rc1+ {[%emt 0:00:34]} Kb5 {[%emt 0:01:44]} 32. Nd4+ {[%emt 0:00:17]} Ka6 {[%emt 0:01:07]} 33. Qa3+ {[%emt 0:00:10] Weighted Error Value: White=0.64/Black=1.18} 1-0

[Event "GER-chT States Women 2022"]
[Site "Braunfels"]
[Date "2022.06.19"]
[Round "5.23"]
[White "Schilay, Eva"]
[Black "Leib, Britta"]
[Result "0-1"]
[ECO "C01"]
[WhiteElo "1691"]
[BlackElo "1906"]
[Annotator "TA"]
[PlyCount "64"]
[EventDate "2022.06.15"]
[EventType "swiss"]
[EventCountry "GER"]
[SourceTitle "playchess.com"]
[Source "ChessBase"]
[SourceQuality "1"]
[TimeControl "40/5400+30:1800+30"]

{[%evp 12,64,5,0,8,0,0,-4,183,184,275,43,50,56,44,61,48,-145,-133,-137,-130,-141,-130,-143,-104,-182,-183,-168,-185,-224,-200,-284,-281,-300,-259,-264,-174,-307,-224,-368,-363,-547,-385,-396,-391,-787,-496,-1277,-1230,-1443,-792,-792,-789,-782,-762]} 1. e4 {[%emt 0:00:03]} e6 {[%emt 0:00:01]} 2. d4 {[%emt 0:01:12]} d5 {[%emt 0:00:07]} 3. exd5 {[%emt 0:01:05]} exd5 {[%emt 0:00:05]} 4. Bd3 {[%emt 0:00:31]} Bd6 {[%emt 0:02:11]} 5. h3 {[%emt 0:01:54]} Ne7 {[%emt 0:07:43]} 6. Nf3 {[%emt 0:03:45]} O-O {[%emt 0:04:39]} 7. O-O {[%emt 0:04:32]} c6 {[%emt 0:12:45] C01: French: Exchange Variation.} 8. c3 {[%emt 0:06:37]} Bf5 {[%emt 0:06:35]} 9. Re1 {[%emt 0:02:07]} Nd7 $2 {[%emt 0:11:15] [#]} (9... Na6 $11 {and Black has nothing to worry.}) 10. Rxe7 $146 {[%emt 0:12:39] Strongly threatening Re1.} ({Predecessor:} 10. Qc2 Bxd3 11. Qxd3 Qc7 12. Be3 Rfe8 13. Nbd2 Ng6 14. Rac1 Re6 15. c4 Nf6 16. c5 {½-½ (68) Kroselj,L (1666)-Vidrih,J (1726) Rogaska Slatina 2010}) 10... Bxh3 {[%emt 0:24:15]} (10... Bxd3 $142 11. Rxd7 Qxd7) 11. Bxh7+ $2 {[%emt 0:12:20]} ({White should play} 11. Re1 $18 Bg4 12. Nbd2) 11... Kxh7 $14 {[%emt 0:01:03]} 12. Qd3+ {[%emt 0:09:30]} Kg8 {[%emt 0:04:24] [#]} 13. Ng5 $1 {[%emt 0:00:55][%csl Gg5][%cal Rd3h7]} Nf6 {[%emt 0:00:08] Against Qh7+} 14. Rxb7 {[%emt 0:05:14]} (14. Rxf7 $1 $14 {was the only good move.} Rxf7 15. Nxf7 Kxf7 16. Qxh3) 14... Bc8 $17 {[%emt 0:03:28] White is on the road to losing.} 15. Rb3 {[%emt 0:01:31]} a5 {[%emt 0:01:06][%cal Ba7a5,Ba5a4][%mdl 1056] Black has strong compensation.} 16. c4 {[%emt 0:16:24]} Re8 {[%emt 0:02:25]} 17. Be3 {[%emt 0:01:40]} Ne4 $36 {[%emt 0:05:20][%mdl 2048] Black has strong initiative.} 18. Nf3 {[%emt 0:03:59]} (18. c5 $17 {was necessary.}) 18... a4 {[%emt 0:00:39]} 19. Rc3 {[%emt 0:03:35]} Nxc3 {[%emt 0:02:21]} 20. Qxc3 {[%emt 0:00:01]} dxc4 {[%emt 0:01:06]} 21. Qxc4 {[%emt 0:00:16]} (21. Na3 $142) 21... Be6 $19 {[%emt 0:00:15]} 22. Qc2 {[%emt 0:01:17]} Bd5 {[%emt 0:02:41] aiming for ...Bxf3. This bishop pair is nice.} 23. Nbd2 {[%emt 0:00:55]} g6 {[%emt 0:00:54]} 24. Qd1 {[%emt 0:07:09]} (24. Nc4 $142) 24... Qf6 {[%emt 0:01:27]} 25. b3 {[%emt 0:00:22]} (25. Rc1 $142) 25... axb3 {[%emt 0:01:15]} 26. Nxb3 {[%emt 0:00:01]} (26. axb3 {only move.} Rxa1 27. Qxa1) 26... Bf4 {[%emt 0:01:11]} 27. Bxf4 {[%emt 0:02:55]} Qxf4 {[%emt 0:00:03]} 28. Kf1 $2 {[%emt 0:00:41]} (28. Qc1 Qxc1+ 29. Rxc1) 28... Ra3 {[%emt 0:01:40] Black is clearly winning.} 29. Ne5 {[%emt 0:00:46]} (29. Qd2 $142 Qb8 30. Qc3) 29... Qh2 {[%emt 0:01:05]} 30. Qc1 {[%emt 0:01:01]} Qh1+ {[%emt 0:00:32]} 31. Ke2 {[%emt 0:00:02]} Qxc1 {[%emt 0:00:13]} 32. Nxc1 {[%emt 0:00:19]} f6 {[%emt 0:00:03] Weighted Error Value: White=0.85/Black=0.73} 0-1

[Event "GER-chT States Women 2022"]
[Site "Braunfels"]
[Date "2022.06.19"]
[Round "5.24"]
[White "Freter, Anke"]
[Black "Schaefer, Ann-Kathrin"]
[Result "1-0"]
[ECO "B24"]
[WhiteElo "1856"]
[BlackElo "1680"]
[Annotator "NA RC"]
[PlyCount "47"]
[EventDate "2022.06.15"]
[EventType "swiss"]
[EventCountry "GER"]
[SourceTitle "playchess.com"]
[Source "ChessBase"]
[SourceQuality "1"]
[TimeControl "40/5400+30:1800+30"]

1. e4 {[%emt 0:00:02]} c5 {[%emt 0:00:05]} 2. Nc3 {[%emt 0:00:25]} Nc6 {[%emt 0:00:06]} 3. g3 {[%emt 0:00:25]} g6 {[%emt 0:00:07]} 4. Bg2 {[%emt 0:00:06]} Bg7 {[%emt 0:00:05]} 5. d3 {[%emt 0:00:06]} e6 {[%emt 0:00:30]} 6. f4 {[%emt 0:00:08]} Nge7 {[%emt 0:00:38]} 7. Nf3 {[%emt 0:04:44]} d5 {[%emt 0:03:47]} 8. e5 {[%emt 0:04:07]} Rb8 {[%emt 0:04:39]} 9. O-O {[%emt 0:07:19]} b5 {[%emt 0:05:26]} 10. g4 {[%emt 0:09:50]} b4 {[%emt 0:10:58]} 11. Ne2 {[%emt 0:00:18]} O-O {[%emt 0:14:09]} 12. Ng3 {[%emt 0:06:13]} c4 {[%emt 0:07:53]} 13. dxc4 {[%emt 0:03:06]} Qb6+ {[%emt 0:02:52]} 14. Kh1 {[%emt 0:01:21]} dxc4 {[%emt 0:00:07]} 15. Ne4 {[%emt 0:02:49]} a5 {[%emt 0:05:15]} 16. Qe1 {[%emt 0:07:44]} Nd5 {[%emt 0:01:56]} 17. g5 {[%emt 0:06:47]} Ba6 {[%emt 0:03:44]} 18. Nf6+ {[%emt 0:02:53]} Bxf6 {[%emt 0:04:25]} 19. gxf6 {[%emt 0:02:40]} c3 {[%emt 0:01:39]} 20. Qh4 {[%emt 0:09:42]} Bxf1 {[%emt 0:02:59]} 21. Qh6 {[%emt 0:00:49]} Bxg2+ {[%emt 0:02:07]} 22. Kxg2 {[%emt 0:00:09]} Nxf6 {[%emt 0:04:54]} 23. exf6 {[%emt 0:00:09]} cxb2 {[%emt 0:00:40]} 24. Qg7# {[%emt 0:00:06]} 1-0

[Event "GER-chT States Women 2022"]
[Site "Braunfels"]
[Date "2022.06.19"]
[Round "5.25"]
[White "Hund, Sarah"]
[Black "Rieping, Lea"]
[Result "0-1"]
[ECO "B01"]
[WhiteElo "2086"]
[BlackElo "1912"]
[Annotator "NA RC"]
[PlyCount "66"]
[EventDate "2022.06.15"]
[EventType "swiss"]
[EventCountry "GER"]
[SourceTitle "playchess.com"]
[Source "ChessBase"]
[SourceQuality "1"]
[TimeControl "40/5400+30:1800+30"]

1. e4 {[%emt 0:00:03]} d5 {[%emt 0:00:04]} 2. exd5 {[%emt 0:00:06]} Qxd5 {[%emt 0:00:03]} 3. Nc3 {[%emt 0:00:09]} Qa5 {[%emt 0:00:04]} 4. Bc4 {[%emt 0:00:17]} Nf6 {[%emt 0:00:11]} 5. d3 {[%emt 0:00:15]} Bg4 {[%emt 0:02:19]} 6. f3 {[%emt 0:04:29]} Bh5 {[%emt 0:00:11]} 7. Bd2 {[%emt 0:02:47]} Qc5 {[%emt 0:01:24]} 8. Qe2 {[%emt 0:14:52]} Nc6 {[%emt 0:01:13]} 9. O-O-O {[%emt 0:01:33]} Nd4 {[%emt 0:03:17]} 10. Qe3 {[%emt 0:03:16]} O-O-O {[%emt 0:00:24]} 11. Nge2 {[%emt 0:03:00]} e5 {[%emt 0:00:51]} 12. Rhe1 {[%emt 0:02:42]} Bd6 {[%emt 0:14:41]} 13. h4 {[%emt 0:08:29]} Bg6 {[%emt 0:05:10]} 14. g4 {[%emt 0:01:19]} h5 {[%emt 0:00:52]} 15. g5 {[%emt 0:06:01]} Nd7 {[%emt 0:09:06]} 16. Ng3 {[%emt 0:05:45]} Nb6 {[%emt 0:02:46]} 17. Nge4 {[%emt 0:01:40]} Nxc4 {[%emt 0:01:07]} 18. dxc4 {[%emt 0:03:41]} Qxc4 {[%emt 0:01:42]} 19. Kb1 {[%emt 0:03:25]} Bb4 {[%emt 0:20:16]} 20. Rc1 {[%emt 0:05:13]} Kb8 {[%emt 0:06:02]} 21. a3 {[%emt 0:03:18]} Ba5 {[%emt 0:01:14]} 22. Red1 {[%emt 0:03:11]} Bb6 {[%emt 0:01:02]} 23. Na2 {[%emt 0:05:29]} Ne2 {[%emt 0:01:10]} 24. Qb3 {[%emt 0:01:00]} Qxb3 {[%emt 0:00:16]} 25. cxb3 {[%emt 0:00:08]} Nxc1 {[%emt 0:00:06]} 26. Kxc1 {[%emt 0:00:14]} Rd3 {[%emt 0:00:46]} 27. Rf1 {[%emt 0:00:50]} Rhd8 {[%emt 0:00:21]} 28. Bc3 {[%emt 0:00:42]} Be3+ {[%emt 0:01:56]} 29. Kc2 {[%emt 0:00:44]} Bf4 {[%emt 0:00:44]} 30. Bb4 {[%emt 0:03:14]} Rxf3 {[%emt 0:00:14]} 31. Re1 {[%emt 0:00:16]} Re3 {[%emt 0:01:34]} 32. Rxe3 {[%emt 0:00:09]} Bxe3 {[%emt 0:00:04]} 33. Nac3 {[%emt 0:00:05]} Rd4 {[%emt 0:00:13]} 0-1

[Event "GER-chT States Women 2022"]
[Site "Braunfels"]
[Date "2022.06.19"]
[Round "5.26"]
[White "Nizamova, Rita"]
[Black "Kuehnel, Lena"]
[Result "1-0"]
[ECO "C51"]
[WhiteElo "1814"]
[BlackElo "1928"]
[Annotator "TA"]
[PlyCount "75"]
[EventDate "2022.06.15"]
[EventType "swiss"]
[EventCountry "GER"]
[SourceTitle "playchess.com"]
[Source "ChessBase"]
[SourceQuality "1"]
[TimeControl "40/5400+30:1800+30"]

{[%evp 10,75,0,0,8,0,0,0,0,-59,-70,-67,47,48,149,32,29,42,44,34,58,60,131,81,163,158,358,356,366,370,368,365,364,371,371,371,367,371,371,364,363,279,268,272,279,279,367,316,312,215,225,204,367,361,29990,877,1139,1139,29963,29967,29982,29983,29989,29990,29990,29991,29983,29984]} 1. e4 {[%emt 0:00:01]} e5 {[%emt 0:00:06]} 2. Nf3 {[%emt 0:00:02]} Nc6 {[%emt 0:00:08]} 3. Bc4 {[%emt 0:00:04]} Bc5 {[%emt 0:00:08]} 4. b4 {[%emt 0:00:03]} Bxb4 {[%emt 0:02:44]} 5. c3 {[%emt 0:00:06]} Bd6 {[%emt 0:05:30]} 6. d4 {[%emt 0:00:54]} Nf6 {[%emt 0:05:12] C51: Evans Gambit: Declined and Accepted without 5...Ba5.} 7. O-O {[%emt 0:01:06]} h6 {[%emt 0:03:29]} (7... Nxe4 8. dxe5 Nxe5 9. Re1 Nxc4 10. Rxe4+ Be7 11. Rxc4 $16) 8. dxe5 {[%emt 0:07:44]} Bxe5 {[%emt 0:01:57] [#] The position is equal.} (8... Nxe5 9. Nxe5 Bxe5 10. f4 $16) 9. Nh4 $146 {[%emt 0:01:03]} (9. Nxe5 $11 Nxe5 10. Bb3) ({Predecessor:} 9. Nxe5 Nxe5 10. Bb3 d6 11. f4 Nc6 12. Ba3 O-O 13. e5 dxe5 14. Bxf8 Qxf8 15. fxe5 Nxe5 {1-0 (38) Khader,S (2378)-Paramzina,A (2256) Sharjah 2021}) 9... O-O $15 {[%emt 0:22:17]} 10. f4 $1 {[%emt 0:03:51] [#]} Nxe4 $1 {[%emt 0:04:55]} 11. fxe5 $14 {[%emt 0:08:30]} Nxe5 {[%emt 0:04:44] [#]} (11... Qxh4 $14 12. Rf4 Nf2 13. Rxh4 (13. Qe2 Nh3+ 14. gxh3 Qg5+ 15. Kh1 Qxe5 $14) 13... Nxd1) 12. Qd5 {[%emt 0:10:30]} (12. Qd4 $1 $16 {[%cal Rd4e4]} Qxh4 13. Qxe5) 12... Nxc4 {[%emt 0:08:47]} 13. Qxe4 {[%emt 0:00:33]} d5 {[%emt 0:00:57]} 14. Qe1 $36 {[%emt 0:00:52][%mdl 2048] White has good play.} Qd6 {[%emt 0:04:50]} 15. Nd2 {[%emt 0:03:22]} Ne5 {[%emt 0:06:54]} ({Black should play} 15... Qc5+ $14 16. Kh1 Nd6) 16. Qg3 {[%emt 0:04:02]} (16. Ba3 c5 $14) (16. Nb3 $142) 16... Bd7 {[%emt 0:02:06]} (16... Nc4 $16 {was worth a try.}) 17. Nb3 $18 {[%emt 0:04:46]} c5 $2 {[%emt 0:02:27] A mistake that costs the game.} (17... Ng6 $16 {might work better.} 18. Qxd6 cxd6) 18. Bf4 {[%emt 0:09:32]} Rae8 {[%emt 0:04:15]} 19. Rae1 {[%emt 0:02:11]} f6 {[%emt 0:00:49]} 20. Ng6 {[%emt 0:02:26]} ({Don't do} 20. Bxh6 Rf7 21. Bf4 b6 $18) 20... Rf7 {[%emt 0:01:30]} 21. Bxe5 {[%emt 0:01:46]} fxe5 {[%emt 0:00:13]} 22. Rxf7 {[%emt 0:00:15] The board is on fire.} Kxf7 {[%emt 0:00:07]} 23. Nxe5+ {[%emt 0:00:54] Pair of Knights!} Kg8 {[%emt 0:00:07]} 24. Nxd7 {[%emt 0:01:29]} Qxd7 {[%emt 0:01:19]} 25. Rxe8+ {[%emt 0:00:16]} Qxe8 {[%emt 0:00:04]} 26. Nxc5 {[%emt 0:00:31]} Qe2 {[%emt 0:00:46]} 27. h3 {[%emt 0:01:56]} ({Weaker is} 27. Nxb7 Qd1+ 28. Kf2 Qc2+ 29. Kf1 Qb1+ 30. Kf2 Qxb7 $11) 27... b6 {[%emt 0:01:07]} 28. Nd7 {[%emt 0:01:06]} Qxa2 {[%emt 0:02:32]} 29. Nf6+ {[%emt 0:02:11]} Kf7 {[%emt 0:00:31]} 30. Nh5 {[%emt 0:00:26]} g5 {[%emt 0:01:13]} (30... Qb1+ {is a better defense.} 31. Kh2 Qg6) 31. Qf3+ {[%emt 0:01:32]} Kg6 $2 {[%emt 0:00:44]} (31... Ke6 $18 32. Qf8 Qd2 33. Qxh6+ Kd7) 32. Ng3 {[%emt 0:00:17]} (32. Qf6+ $142 Kxh5 33. Qf7+ Kh4 34. Qf3 Qc4 35. Kh2 Qf4+ 36. g3+ Qxg3+ 37. Qxg3+ Kh5 38. Qd3 a5 39. Qf5 b5 40. Kg3 b4 41. Qf7#) 32... Qb1+ {[%emt 0:02:48]} 33. Kh2 {[%emt 0:00:10]} a5 {[%emt 0:00:50]} 34. Qxd5 {[%emt 0:00:25] White mates.} Qc2 {[%emt 0:02:20]} 35. Qe6+ {[%emt 0:01:23]} Kh7 {[%emt 0:00:08]} 36. Qf7+ {[%emt 0:01:42]} Kh8 {[%emt 0:00:07]} 37. Qf6+ {[%emt 0:00:40]} Kh7 {[%emt 0:00:06]} 38. Nf5 {[%emt 0:00:10] Weighted Error Value: White=0.20 (precise) /Black=0.86} 1-0